bitfinex-derivatives/quotes_ETHF0:USTF0_20240925
["timestamp","ask_amount","ask_price","bid_price","bid_amount"]
[1727282699231,0.3903,2605.4,2605.3,0.38379]
[1727282699427,0.3903,2605.4,2605.3,3.59159]
[1727282699731,0.7661,2605.5,2605.4,0.38379]
[1727282699936,1.50774532,2605.9,2605.5,0.95943]
[1727282700125,0.76973,2605.9,2605.8,0.38374]
[1727282700333,0.386,2605.9,2605.8,0.38374]
[1727282700728,1.50774532,2606.0,2605.9,0.38372]
[1727282700729,0.38371,2606.0,2605.9,0.38372]
[1727282701034,0.38371,2606.0,2605.9,0.38371]
[1727282701237,1.15851,2606.0,2605.9,0.38371]
[1727282702048,0.38373,2605.9,2605.8,0.38373]
[1727282702235,0.38373,2605.9,2605.6,0.38376]
[1727282702236,0.38376,2605.7,2605.6,0.38376]
[1727282703336,9.14963532,2606.0,2605.5,0.38377]
[1727282703337,0.38378,2605.6,2605.5,0.38377]
[1727282703537,1.15098,2605.6,2605.5,0.38377]
[1727282705342,1.15096,2605.6,2605.5,0.38377]
[1727282705845,0.7672,2605.6,2605.5,0.38377]
[1727282706343,1.1562,2605.6,2605.5,0.38377]
[1727282707135,1.53996,2605.6,2605.5,0.38377]
[1727282707345,0.38379,2605.5,2605.4,0.38378]
[1727282707951,1.1562,2605.6,2605.5,0.38378]
[1727282708247,0.389,2605.6,2605.5,1.34324]
[1727282708448,0.371,2605.9,2605.8,0.38374]
[1727282708642,0.7636,2605.9,2605.8,0.38374]
[1727282709848,0.7636,2605.9,2605.8,1.34309]
[1727282710045,0.7636,2605.9,2605.8,0.38374]
[1727282711042,1.14732,2605.9,2605.8,0.38374]
[1727282711252,0.7636,2605.9,2605.8,0.38374]
[1727282711946,1.14732,2605.9,2605.8,0.38374]
[1727282712146,0.7636,2605.9,2605.6,3.2078]
[1727282712341,0.38375,2605.7,2605.6,3.59156]
[1727282712538,0.38374,2605.8,2605.7,0.38374]
[1727282713944,0.38375,2605.7,2605.6,3.59155]
[1727282714954,0.7636,2605.9,2605.6,3.2078]
[1727282715149,0.38374,2605.8,2605.7,0.38374]
[1727282716347,0.7636,2605.9,2605.6,0.38376]
[1727282716348,0.38375,2605.7,2605.6,0.38376]
[1727282716749,0.38375,2605.8,2605.7,0.38374]
[1727282716953,1.14732,2605.9,2605.8,0.38374]
[1727282717448,0.7636,2605.9,2605.6,3.2078]
[1727282717654,1.14733,2605.9,2605.8,0.38374]
[1727282718051,0.38375,2605.8,2605.7,0.38374]
[1727282719856,0.3926,2605.9,2605.8,1.34309]
[1727282720154,0.3926,2605.9,2605.8,0.38374]
[1727282720354,0.3926,2605.9,2605.8,1.34309]
[1727282720660,0.3837,2606.1,2606.0,0.38371]
[1727282720848,0.3698,2606.1,2606.0,0.38371]
[1727282721257,0.75349,2606.1,2606.0,0.38371]
[1727282722061,0.3698,2606.1,2606.0,0.38371]
[1727282722955,5.85307901,2606.5,2606.0,0.38371]
[1727282722956,5.09916532,2606.6,2606.2,0.38368]
[1727282723147,0.393,2606.6,2606.5,0.38363]
[1727282723649,0.38365,2606.4,2606.3,0.38366]
[1727282723845,2.7,2606.5,2606.0,0.4021]
[1727282724150,0.7559,2606.3,2605.9,3.5865]
[1727282724354,0.3837,2606.1,2606.0,0.3837]
[1727282724748,0.3837,2606.1,2605.9,3.2078]
[1727282724749,0.38371,2606.0,2605.9,3.2078]
[1727282725345,0.38371,2606.0,2605.9,3.59152]
[1727282725552,0.3837,2606.1,2606.0,0.38371]
[1727282725947,0.3837,2606.1,2605.9,3.2078]
[1727282725948,0.38371,2606.0,2605.9,3.59151]
[1727282726353,0.38371,2606.0,2605.9,3.2078]
[1727282726548,2.85065532,2606.2,2605.6,0.3787]
[1727282726549,4.20774532,2606.1,2605.6,0.3787]
[1727282726746,0.38372,2605.9,2605.8,0.38373]
[1727282728754,2.7,2606.1,2605.9,0.38372]
[1727282728755,0.38372,2606.0,2605.9,0.38372]
[1727282729461,6.66974798,2606.1,2605.6,0.3787]
[1727282729662,0.38376,2605.6,2605.5,3.2078]
[1727282729861,0.38379,2605.5,2605.4,0.38378]
[1727282730848,0.75947,2605.6,2605.5,0.38378]
[1727282731163,0.38379,2605.5,2605.4,0.38378]
[1727282732661,0.38378,2605.5,2605.4,0.38378]
[1727282732861,0.75947,2605.6,2605.5,0.38378]
[1727282735365,0.3757,2605.6,2605.5,0.38378]
[1727282735564,1.50771791,2605.8,2605.7,0.38375]
[1727282735756,0.38374,2605.8,2605.7,0.38375]
[1727282736670,0.38375,2605.7,2605.6,0.38375]
[1727282736967,0.38378,2605.6,2605.5,0.38377]
[1727282740569,1.34324,2605.5,2605.4,3.59159]
[1727282740867,1.34339,2605.2,2605.1,1.0026833]
[1727282741070,1.34339,2605.2,2604.7,1.0026833]
[1727282741071,0.95957,2605.2,2604.7,1.0026833]
[1727282741366,2.28050777,2605.1,2605.0,0.38385]
[1727282741669,0.77215,2605.1,2605.0,0.38385]
[1727282742768,0.3883,2605.1,2605.0,0.38385]
[1727282742988,0.77214,2605.1,2605.0,0.38385]
[1727282744069,0.3883,2605.1,2605.0,0.38385]
[1727282744265,0.77214,2605.1,2605.0,0.38385]
[1727282746474,0.3883,2605.1,2605.0,3.59165]
[1727282747672,0.77214,2605.1,2605.0,3.59165]
[1727282748668,0.3883,2605.1,2605.0,3.59165]
[1727282749072,0.77214,2605.1,2605.0,3.59165]
[1727282749271,1.50835777,2605.4,2605.0,8.00584]
[1727282749470,0.38381,2605.4,2605.3,0.38381]
[1727282749772,0.38382,2605.3,2605.2,0.38381]
[1727282750067,0.38384,2605.2,2605.1,0.38383]
[1727282750278,0.38382,2605.3,2605.2,0.38381]
[1727282754171,0.7637,2605.4,2605.3,0.38381]
[1727282754362,0.38382,2605.3,2605.2,0.38381]
[1727282754963,2.27155777,2605.5,2605.0,3.2078]
[1727282755167,1.14699,2605.5,2605.4,0.38379]
[1727282759475,0.7632,2605.5,2605.4,0.38379]
[1727282759673,1.89211777,2605.7,2605.6,0.38376]
[1727282759979,0.77446,2605.7,2605.6,0.38376]
[1727282760585,0.38378,2605.6,2605.5,0.38377]
[1727282760984,0.38379,2605.5,2605.4,0.38378]
[1727282761584,0.3838,2605.4,2605.3,0.38379]
[1727282761786,0.7515,2605.4,2605.3,0.38379]
[1727282763586,1.9915,2605.4,2605.3,0.38381]
[1727282763786,1.6077,2605.4,2605.3,0.38381]
[1727282763981,0.3677,2605.4,2605.3,3.59161]
[1727282764177,1.89905777,2605.7,2605.5,0.38376]
[1727282764483,2.29865777,2605.7,2605.6,0.38376]
[1727282764687,0.7903,2605.7,2605.6,3.59156]
[1727282765879,2.29675998,2605.7,2605.6,3.59156]
[1727282766584,2.68050998,2605.7,2605.6,3.59156]
[1727282767383,1.50645998,2605.8,2605.7,1.34313]
[1727282767585,1.88685998,2606.0,2605.7,2.59168]
[1727282767786,1.88685998,2606.0,2605.9,3.59152]
[1727282768290,1.88763575,2606.1,2606.0,0.38371]
[1727282769184,1.50643575,2606.1,2606.0,0.38371]
[1727282769487,0.9591,2606.5,2606.0,0.38371]
[1727282769488,0.3808,2606.5,2606.4,0.38365]
[1727282769786,1.91193575,2606.7,2606.4,4.4478]
[1727282769983,1.91193575,2606.7,2606.6,0.38362]
[1727282770178,2.39109055,2606.8,2606.6,1.24]
[1727282770376,0.3808,2606.8,2606.7,3.5914]
[1727282770581,0.3808,2606.8,2606.7,3.2078]
[1727282770796,1.8863896,2606.8,2606.7,3.2078]
[1727282771386,0.3808,2606.8,2606.7,3.2078]
[1727282772396,0.76439,2606.8,2606.7,3.2078]
[1727282772688,1.8863896,2606.8,2606.7,3.2078]
[1727282773007,1.8863896,2606.8,2606.7,3.5914]
[1727282773185,0.3808,2606.8,2606.7,3.5914]
[1727282775792,0.4055,2606.9,2606.8,0.38359]
[1727282776091,0.4055,2606.9,2606.8,0.75089]
[1727282776293,0.3731,2607.3,2606.9,0.95894]
[1727282776486,1.13342,2607.3,2607.1,3.59134]
[1727282776689,0.7499,2607.3,2607.2,0.38353]
[1727282777985,0.3768,2607.3,2607.1,3.2078]
[1727282778181,0.76032,2607.3,2607.1,0.38354]
[1727282778386,0.76032,2607.3,2606.8,5.29377]
[1727282778782,0.76032,2607.3,2607.1,0.38353]
[1727282779293,0.38353,2607.2,2606.8,4.3348]
[1727282779489,0.76032,2607.3,2607.1,0.38353]
[1727282780296,0.38353,2607.2,2607.1,0.38353]
[1727282780493,0.76032,2607.3,2607.1,0.38353]
[1727282780798,0.38353,2607.2,2607.1,0.38353]
[1727282781694,5.5311996,2607.3,2606.9,0.38357]
[1727282781890,0.38356,2607.0,2606.9,0.38357]
[1727282782490,4.5723896,2607.3,2606.8,3.2078]
[1727282782695,4.5723896,2607.3,2606.5,3.2078]
[1727282782696,3.0564,2606.9,2606.5,3.2078]
[1727282783001,0.38363,2606.5,2606.1,0.3969]
[1727282783188,2.69,2606.7,2605.9,3.5769]
[1727282783189,0.7602,2606.4,2605.9,3.5769]
[1727282783497,0.7602,2606.4,2606.3,0.38366]
[1727282784995,5.1546196,2606.7,2606.3,0.3913]
[1727282784996,0.3835,2606.7,2606.3,0.3913]
[1727282785184,0.77403,2606.6,2606.3,1.1544]
[1727282785389,0.77403,2606.6,2606.2,3.2078]
[1727282785703,0.3904,2606.6,2606.5,0.38363]
[1727282787085,0.77402,2606.6,2606.5,0.38363]
[1727282787291,0.3904,2606.6,2606.5,0.38363]
[1727282787594,0.38363,2606.5,2606.3,0.38366]
[1727282787898,0.3904,2606.6,2606.3,0.38366]
[1727282787899,0.38365,2606.4,2606.3,0.38366]
[1727282788093,0.38365,2606.4,2605.9,4.16709]
[1727282788094,0.38365,2606.4,2606.2,0.38367]
[1727282788299,0.38364,2606.5,2606.3,0.38366]
[1727282788593,0.38366,2606.4,2606.2,0.38367]
[1727282788785,5.5450496,2606.6,2606.3,0.38366]
[1727282789097,0.38366,2606.4,2606.2,0.38367]
[1727282789695,0.38366,2606.3,2606.2,0.38367]
[1727282790212,4.03946,2606.6,2606.0,3.0944]
[1727282790501,0.38366,2606.4,2606.2,0.38367]
[1727282790697,4.03946,2606.6,2606.0,3.0944]
[1727282790893,4.03946,2606.6,2606.2,0.38366]
[1727282791294,0.38366,2606.4,2606.2,0.38366]
[1727282791690,0.38366,2606.3,2606.2,0.38366]
[1727282792392,0.38371,2606.0,2605.9,3.59151]
[1727282792596,1.49179,2606.2,2606.1,0.38369]
[1727282792803,0.38371,2606.0,2605.9,3.59151]
[1727282793002,0.38371,2606.0,2605.9,3.2078]
[1727282793399,0.95931,2605.9,2605.0,3.2078]
[1727282793602,0.38376,2605.6,2605.5,0.77137]
[1727282794104,0.95931,2605.9,2605.6,0.38376]
[1727282794105,0.38376,2605.7,2605.6,0.38376]
[1727282794596,0.95931,2605.9,2605.7,0.38375]
[1727282794802,0.95931,2605.9,2605.5,0.3876]
[1727282794803,0.38375,2605.7,2605.6,0.38376]
[1727282795199,0.38376,2605.6,2605.5,0.77137]
[1727282795601,0.38376,2605.6,2605.5,0.3876]
[1727282795903,0.38376,2605.6,2605.5,0.77138]
[1727282797201,1.13656,2605.7,2605.6,0.38376]
[1727282797404,1.13656,2605.7,2605.5,0.3876]
[1727282797405,0.38376,2605.6,2605.5,0.77137]
[1727282798791,0.38376,2605.6,2605.5,1.14697]
[1727282799003,0.38376,2605.6,2605.5,0.7632]
[1727282800403,0.38376,2605.6,2605.5,1.14698]
[1727282800603,0.38376,2605.6,2605.5,0.7632]
[1727282800799,0.38382,2605.3,2605.2,0.38381]
[1727282801008,0.38382,2605.2,2605.1,0.75943]
[1727282801392,4.03339,2605.2,2605.1,0.3756]
[1727282801600,0.38384,2605.1,2605.0,1.13395]
[1727282801909,0.38383,2605.2,2605.1,0.38383]
[1727282802204,0.38384,2605.1,2605.0,1.13394]
[1727282802999,0.38388,2604.8,2604.7,3.2078]
[1727282803207,0.38391,2604.6,2604.5,1.0026833]
[1727282803407,3.07391,2604.6,2604.5,1.0026833]
[1727282803608,7.8729,2604.6,2604.5,1.0026833]
[1727282803907,7.8729,2604.6,2604.1,0.38398]
[1727282803908,0.38393,2604.5,2604.1,0.38398]
[1727282804109,0.38393,2604.5,2604.2,0.38396]
[1727282804110,3.2078,2604.5,2604.2,0.38396]
[1727282804306,3.2078,2604.5,2603.9,3.6062]
[1727282805003,3.2078,2604.5,2604.3,0.38395]
[1727282805209,3.59173,2604.5,2604.2,0.38396]
[1727282805901,3.59173,2604.5,2603.9,3.6062]
[1727282806208,3.2078,2604.5,2604.2,0.38397]
[1727282806511,3.97033,2604.5,2604.2,0.38397]
[1727282806710,3.97033,2604.5,2604.0,0.38399]
[1727282806711,0.38394,2604.4,2604.0,0.38399]
[1727282807204,0.38394,2604.4,2604.1,0.38398]
[1727282807403,3.97033,2604.5,2604.2,0.38397]
[1727282807597,3.2078,2604.5,2604.3,0.38395]
[1727282807801,3.2078,2604.5,2604.4,0.3789]
[1727282808017,3.2078,2604.5,2604.4,0.76284]
[1727282808804,0.38387,2604.9,2604.5,0.38391]
[1727282809105,0.38387,2604.9,2604.6,0.38391]
[1727282809409,10.3481,2605.0,2604.5,0.38392]
[1727282809410,0.38388,2604.8,2604.5,0.38392]
[1727282811010,0.3839,2604.7,2604.5,0.38392]
[1727282811311,0.38392,2604.6,2604.4,0.76284]
[1727282811709,3.2078,2604.7,2604.4,0.76284]
[1727282811710,3.2078,2604.7,2604.4,0.3789]
[1727282811909,0.38393,2604.5,2604.4,0.3789]
[1727282812106,0.77802,2604.6,2604.4,0.76284]
[1727282812306,0.38393,2604.5,2604.4,0.3789]
[1727282813216,0.38393,2604.5,2604.4,0.76284]
[1727282813912,3.2078,2604.7,2604.6,0.38391]
[1727282814218,0.38388,2604.9,2604.7,0.38389]
[1727282814602,0.38388,2604.9,2604.8,0.38388]
[1727282815020,0.38389,2604.8,2604.7,0.38389]
[1727282815318,0.38388,2604.9,2604.8,0.38388]
[1727282815707,3.5801,2605.0,2604.6,2.69]
[1727282815906,3.5801,2605.0,2604.9,0.38387]
[1727282816119,0.3723,2605.0,2604.9,0.38387]
[1727282817015,0.38387,2604.9,2604.8,0.38387]
[1727282817210,0.3723,2605.0,2604.4,7.23655]
[1727282817417,0.38388,2604.9,2604.8,0.38388]
[1727282817916,0.3723,2605.0,2604.4,7.23655]
[1727282817917,0.75616,2605.0,2604.9,0.38387]
[1727282819019,0.38388,2604.9,2604.8,0.38388]
[1727282819620,0.38389,2604.8,2604.7,0.38389]
[1727282820306,0.3839,2604.7,2604.6,0.3839]
[1727282821020,0.38393,2604.6,2604.4,0.3789]
[1727282821321,0.38393,2604.6,2604.4,0.76284]
[1727282821322,0.38393,2604.5,2604.4,0.76284]
[1727282822122,0.38393,2604.5,2604.4,0.3789]
[1727282823026,0.38393,2604.5,2604.4,0.76284]
[1727282823214,1.12652,2604.6,2604.5,0.38393]
[1727282823417,0.38392,2604.6,2604.5,0.38393]
[1727282823624,0.38391,2604.7,2604.4,0.3789]
[1727282823815,0.38391,2604.7,2604.6,0.38391]
[1727282824124,0.38393,2604.5,2604.4,0.3789]
[1727282824721,1.71215,2604.5,2604.4,0.3789]
[1727282825018,1.71215,2604.5,2604.3,1.15086]
[1727282825019,0.38394,2604.4,2604.3,1.15086]
[1727282825625,0.38396,2604.3,2604.2,0.3956]
[1727282825820,1.34386,2604.3,2604.2,0.3956]
[1727282826221,0.38396,2604.3,2604.2,0.77957]
[1727282826916,0.38396,2604.3,2604.2,0.3956]
[1727282827121,0.95993,2604.2,2603.9,1.1689]
[1727282827313,0.384,2604.0,2603.9,0.7849]
[1727282827621,1.34401,2604.0,2603.9,0.7849]
[1727282827816,1.34407,2603.9,2603.8,3.2078]
[1727282828122,1.34407,2603.9,2603.7,0.3993]
[1727282828123,1.34411,2603.8,2603.7,0.3993]
[1727282828423,1.34411,2603.8,2603.1,2.69]
[1727282828424,0.96016,2603.6,2603.2,0.38411]
[1727282828618,0.38411,2603.3,2603.2,0.38411]
[1727282828814,0.38411,2603.3,2603.1,1.15072]
[1727282829010,1.36091,2603.5,2603.2,0.38411]
[1727282829216,0.3841,2603.4,2603.3,0.3841]
[1727282829415,0.38411,2603.3,2603.1,0.7666]
[1727282829613,0.38412,2603.2,2603.1,0.7666]
[1727282829820,0.38411,2603.3,2603.2,0.38411]
[1727282830210,0.3841,2603.4,2603.3,0.3841]
[1727282830610,0.78478,2603.5,2603.1,0.7666]
[1727282830820,0.78478,2603.5,2603.3,0.38409]
[1727282831022,0.4007,2603.5,2603.1,3.9744]
[1727282831220,0.38409,2603.4,2603.3,0.3841]
[1727282831416,0.4007,2603.5,2603.4,0.38409]
[1727282831417,0.78478,2603.5,2603.4,0.38409]
[1727282832222,0.78477,2603.5,2603.4,0.38409]
[1727282833117,0.38409,2603.4,2603.1,3.9744]
[1727282833323,0.38409,2603.4,2603.3,0.3841]
[1727282833526,0.78478,2603.5,2603.4,0.38409]
[1727282833720,0.4007,2603.5,2603.1,3.9744]
[1727282833918,0.3841,2603.4,2603.3,0.3841]
[1727282834320,0.38409,2603.4,2603.1,3.9744]
[1727282834521,0.38409,2603.4,2603.3,0.3841]
[1727282834819,0.38411,2603.3,2603.2,0.38412]
[1727282835021,0.38412,2603.2,2603.1,1.15072]
[1727282835222,1.36091,2603.5,2603.1,0.7666]
[1727282835421,0.38411,2603.3,2603.2,0.38411]
[1727282835617,0.38415,2603.0,2602.9,0.78625]
[1727282835827,0.96035,2603.1,2602.7,0.78738]
[1727282836027,0.38418,2602.8,2602.7,0.4032]
[1727282836733,0.96042,2602.9,2602.5,0.77251]
[1727282837024,3.4438,2603.0,2602.7,0.38419]
[1727282837227,3.4438,2603.0,2602.6,0.3842]
[1727282837426,0.38419,2602.8,2602.6,0.3842]
[1727282837621,4.40419,2603.0,2602.5,1.17572]
[1727282837821,0.3842,2602.7,2602.6,0.38421]
[1727282838227,0.38419,2602.8,2602.5,0.7915]
[1727282838429,0.38417,2602.9,2602.7,0.38419]
[1727282838633,3.4438,2603.0,2602.5,0.7915]
[1727282838634,0.7538,2603.0,2602.5,0.7915]
[1727282838827,0.7538,2603.0,2602.7,0.38418]
[1727282839025,1.13796,2603.0,2602.7,0.38418]
[1727282839227,1.13796,2603.0,2602.5,0.7915]
[1727282839526,0.38416,2602.9,2602.7,0.38418]
[1727282839930,1.13795,2603.0,2602.8,0.38417]
[1727282840127,0.38417,2602.9,2602.7,0.38419]
[1727282840544,1.13796,2603.0,2602.5,3.4815]
[1727282840734,1.13796,2603.0,2602.7,0.38418]
[1727282841031,0.7538,2603.0,2602.5,3.4815]
[1727282841232,0.7538,2603.0,2602.8,0.38417]
[1727282841423,0.7538,2603.0,2602.5,3.4815]
[1727282841424,10.3797,2603.4,2602.7,5.8978]
[1727282841622,0.3978,2603.3,2603.1,0.38413]
[1727282841930,9.01724,2603.4,2603.0,3.2078]
[1727282841931,0.75139,2603.4,2603.0,3.2078]
[1727282842127,0.75139,2603.4,2603.2,0.38411]
[1727282842328,0.75139,2603.4,2603.3,0.3841]
[1727282842527,0.75139,2603.4,2603.2,0.38411]
[1727282842732,0.3673,2603.4,2603.3,0.3841]
[1727282843037,0.38409,2603.4,2603.2,0.38411]
[1727282844633,3.0878,2603.5,2603.1,1.1431]
[1727282844830,0.38409,2603.4,2603.2,0.38411]
[1727282846735,0.38409,2603.4,2603.1,1.1431]
[1727282846932,0.38409,2603.4,2603.2,0.38411]
[1727282847433,0.3978,2603.5,2603.1,2.10343]
[1727282847637,0.3978,2603.5,2603.4,0.38409]
[1727282848238,0.78187,2603.5,2603.4,0.38409]
[1727282848541,0.78187,2603.5,2603.3,0.38409]
[1727282848735,0.78187,2603.5,2603.4,0.38409]
[1727282849145,0.3978,2603.5,2603.3,0.38409]
[1727282849440,0.78188,2603.5,2603.3,0.38409]
[1727282850037,0.38409,2603.4,2603.3,0.38409]
[1727282850243,0.78189,2603.5,2603.4,0.38409]
[1727282850546,0.78189,2603.5,2603.3,0.38409]
[1727282850738,0.78187,2603.5,2603.4,0.38409]
[1727282850939,0.3978,2603.5,2603.4,0.38409]
[1727282851142,5.43496,2603.9,2603.6,0.38405]
[1727282851345,0.75634,2603.8,2603.6,0.38405]
[1727282851646,0.38404,2603.7,2603.6,0.38405]
[1727282851836,0.75634,2603.8,2603.6,0.38405]
[1727282852036,0.75634,2603.8,2603.3,4.16806]
[1727282852037,0.38407,2603.6,2603.4,0.38408]
[1727282852244,2.69,2603.6,2603.3,0.3841]
[1727282852442,0.38407,2603.5,2603.3,0.3841]
[1727282853052,0.3723,2603.4,2603.2,0.38411]
[1727282853238,0.7564,2603.4,2603.3,0.3841]
[1727282853439,0.7564,2603.4,2603.2,0.38411]
[1727282853840,0.7564,2603.4,2603.1,1.1431]
[1727282854051,0.7564,2603.4,2603.2,0.38412]
[1727282854846,0.38412,2603.2,2603.1,1.1431]
[1727282855742,6.2701,2603.4,2603.1,1.1431]
[1727282856040,3.4464,2603.4,2603.3,0.3841]
[1727282856248,0.75639,2603.4,2603.2,0.3841]
[1727282856546,0.75639,2603.4,2603.3,0.3841]
[1727282857344,0.3723,2603.4,2603.3,0.3841]
[1727282857955,0.75639,2603.4,2603.3,0.3841]
[1727282858247,0.3723,2603.4,2603.3,0.3841]
[1727282858450,0.75639,2603.4,2603.3,0.3841]
[1727282858642,0.3723,2603.4,2603.3,0.3841]
[1727282860245,3.2078,2603.7,2603.6,0.38406]
[1727282860544,0.4001,2603.8,2603.7,0.38404]
[1727282860740,0.38405,2603.7,2603.6,0.38405]
[1727282862451,0.4001,2603.8,2603.7,0.38404]
[1727282862651,0.78414,2603.8,2603.6,0.7486]
[1727282863062,0.78414,2603.8,2603.7,0.38404]
[1727282863248,0.78414,2603.8,2603.6,1.13265]
[1727282863654,0.78414,2603.8,2603.7,0.38404]
[1727282863655,0.4001,2603.8,2603.7,0.38404]
[1727282863953,0.78413,2603.8,2603.7,0.38404]
[1727282864348,0.4001,2603.8,2603.7,0.38404]
[1727282871756,0.4001,2603.8,2603.5,4.54799]
[1727282871757,0.4001,2603.8,2603.5,3.2078]
[1727282871957,2.69,2603.6,2603.5,0.38407]
[1727282872161,0.38405,2603.7,2603.6,0.38406]
[1727282872464,0.38406,2603.6,2603.5,0.38407]
[1727282872862,0.38408,2603.5,2603.4,0.38408]
[1727282873067,0.38407,2603.6,2603.5,0.38407]
[1727282874655,0.38406,2603.7,2603.6,0.38406]
[1727282874854,3.99194,2603.8,2603.3,0.96027]
[1727282875064,0.38402,2603.9,2603.8,0.38403]
[1727282875262,9.9758,2604.4,2603.8,4.16786]
[1727282875462,0.3696,2604.3,2603.9,1.1972]
[1727282875654,0.3696,2604.3,2604.2,0.38397]
[1727282875859,3.2078,2604.4,2604.3,0.38396]
[1727282878058,3.83552,2604.6,2604.3,0.38396]
[1727282878261,0.38393,2604.5,2604.3,0.38396]
[1727282878463,3.83552,2604.6,2604.3,0.38396]
[1727282878863,0.38393,2604.5,2604.3,0.38396]
[1727282879070,3.4516,2604.6,2604.2,0.38396]
[1727282879071,0.38394,2604.4,2604.2,0.38396]
[1727282879368,3.07394,2604.4,2604.2,0.38396]
[1727282879563,2.69,2604.4,2604.2,0.38396]
[1727282879955,3.07394,2604.4,2604.2,0.38396]
[1727282880161,2.69,2604.4,2604.2,0.38396]
[1727282880365,3.07395,2604.4,2604.2,0.38397]
[1727282880672,0.38398,2604.2,2603.9,1.1972]
[1727282880863,3.07396,2604.3,2604.1,0.38398]
[1727282881659,0.38399,2604.1,2603.9,1.58121]
[1727282882071,3.074,2604.0,2603.8,3.59182]
[1727282882567,2.69,2604.0,2603.8,3.2078]
[1727282882768,2.69,2604.0,2603.9,0.38402]
[1727282883166,2.69,2604.0,2603.8,3.2078]
[1727282883362,0.38402,2603.9,2603.8,3.2078]
[1727282884261,3.07402,2603.9,2603.8,3.2078]
[1727282884462,0.38405,2603.7,2603.5,0.75977]
[1727282884657,3.07406,2603.6,2603.4,0.38408]
[1727282884873,2.69,2603.6,2603.3,1.1431]
[1727282885168,0.3715,2603.5,2603.4,0.38409]
[1727282885572,3.44558,2603.5,2603.3,0.4007]
[1727282885764,0.3899,2603.4,2603.3,0.7848]
[1727282886267,0.77399,2603.4,2603.3,0.4007]
[1727282886470,0.774,2603.4,2603.1,1.12653]
[1727282886669,2.69,2603.2,2603.1,1.12653]
[1727282887568,2.69,2603.2,2603.1,0.38413]
[1727282887966,4.70009917,2603.2,2603.1,0.38413]
[1727282888274,2.69,2603.2,2603.1,0.38413]
[1727282888474,2.69,2603.2,2603.0,0.4007]
[1727282888666,2.01011339,2603.1,2603.0,0.78485]
[1727282889967,2.89406111,2603.3,2603.1,0.38413]
[1727282890275,0.38412,2603.2,2603.0,0.78484]
[1727282890576,2.39394968,2603.2,2603.1,0.38413]
[1727282890768,2.50994111,2603.3,2603.1,0.38413]
[1727282890769,2.89405111,2603.3,2603.1,0.38413]
[1727282890967,0.38412,2603.2,2603.1,0.38413]
[1727282891168,0.38412,2603.2,2603.0,0.78484]
[1727282891473,2.00990694,2603.1,2603.0,0.78484]
[1727282893067,2.39403694,2603.1,2603.0,0.78484]
[1727282893370,0.38414,2603.1,2603.0,0.38415]
[1727282893564,0.38415,2603.0,2602.9,0.38415]
[1727282893769,2.77012888,2603.0,2602.9,0.38415]
[1727282894073,2.77012888,2603.0,2602.8,3.59197]
[1727282894074,0.38416,2602.9,2602.8,3.59197]
[1727282894666,3.45055,2603.0,2602.9,0.38416]
[1727282894862,3.81805,2603.0,2602.9,0.38416]
[1727282895076,3.4339,2603.0,2602.8,0.38417]
[1727282895275,0.38416,2602.9,2602.8,0.38417]
[1727282895473,3.81806,2603.0,2602.8,0.38417]
[1727282895680,3.81806,2603.0,2602.9,0.38416]
[1727282895867,1.12805,2603.0,2602.9,0.38416]
[1727282896069,0.7439,2603.0,2602.7,0.3694]
[1727282896274,1.12806,2603.0,2602.7,0.3694]
[1727282896676,1.12806,2603.0,2602.8,0.38416]
[1727282896981,1.12806,2603.0,2602.9,0.38416]
[1727282897177,0.38417,2602.9,2602.8,0.38417]
[1727282897485,0.38418,2602.9,2602.7,0.38419]
[1727282897666,0.38419,2602.7,2602.6,0.7825]
[1727282897867,3.07421,2602.7,2602.5,0.38422]
[1727282898066,3.07421,2602.7,2602.4,3.98672]
[1727282898067,0.3708,2602.6,2602.4,3.98672]
[1727282898272,2.69,2602.5,2602.3,0.7787]
[1727282898477,0.38424,2602.4,2602.3,0.4041]
[1727282898680,0.38426,2602.3,2602.1,0.77898]
[1727282898874,0.38428,2602.1,2601.9,0.7884]
[1727282899177,2.69,2602.1,2601.5,4.20968425]
[1727282899368,3.07432,2601.9,2601.5,3.2078]
[1727282899565,0.38433,2601.8,2601.6,0.38435]
[1727282899771,2.69,2601.9,2601.5,3.2078]
[1727282899772,2.69,2601.7,2601.5,3.2078]
[1727282899981,3.064,2601.9,2601.5,3.2078]
[1727282900179,3.064,2601.9,2601.7,0.38433]
[1727282900479,3.44831,2601.9,2601.6,0.38435]
[1727282900674,3.44831,2601.9,2601.5,3.2078]
[1727282900881,3.44832,2601.9,2601.6,0.38435]
[1727282901780,5.8978,2601.7,2601.4,0.3906]
[1727282901979,3.07435,2601.7,2601.4,0.77498]
[1727282902177,3.07435,2601.7,2601.4,0.3906]
[1727282902768,6.28215,2601.7,2601.4,0.3906]
[1727282903087,2.69,2601.7,2601.5,0.38437]
[1727282903381,3.2078,2601.7,2601.5,0.38437]
[1727282906379,3.07433,2601.8,2601.5,0.38436]
[1727282906777,2.69,2601.8,2601.4,0.3906]
[1727282907079,3.064,2601.9,2601.4,0.3906]
[1727282907276,3.064,2601.9,2601.7,0.38433]
[1727282907476,3.064,2601.9,2601.4,0.3906]
[1727282907477,3.44831,2601.9,2601.6,0.38434]
[1727282907681,0.38433,2601.8,2601.6,0.38434]
[1727282908185,3.064,2601.9,2601.4,0.3906]